[Event "*** Titled Tuesday Blitz"]
[Site "Chess.com"]
[Date "2021.04.27"]
[Round "2"]
[White "NicoChasin"]
[Black "SergeyShtyka"]
[Result "1-0"]
[WhiteElo "2661"]
[BlackElo "2418"]
[TimeControl "180+1"]
[EndTime "10:17:30 PDT"]
[Termination "NicoChasin won on time"]

1. e4 {[%clk 0:02:56.7]} 1... c5 {[%clk 0:02:59.2]} 2. Nf3 {[%clk 0:02:49.1]}
2... Nc6 {[%clk 0:02:58]} 3. d4 {[%clk 0:02:48.3]} 3... cxd4 {[%clk 0:02:58.3]}
4. Nxd4 {[%clk 0:02:49.2]} 4... Nf6 {[%clk 0:02:58.6]} 5. Nc3 {[%clk 0:02:49.8]}
5... e5 {[%clk 0:02:58.6]} 6. Ndb5 {[%clk 0:02:49.4]} 6... h6 {[%clk 0:02:59.1]}
7. Be3 {[%clk 0:02:46.4]} 7... d6 {[%clk 0:02:58.3]} 8. Nd5 {[%clk 0:02:46.3]}
8... Nxd5 {[%clk 0:02:56]} 9. exd5 {[%clk 0:02:47.2]} 9... a6 {[%clk 0:02:55.3]}
10. dxc6 {[%clk 0:02:45.8]} 10... axb5 {[%clk 0:02:50.6]} 11. cxb7 {[%clk
0:02:42.2]} 11... Bxb7 {[%clk 0:02:44.2]} 12. Bxb5+ {[%clk 0:02:39.8]} 12... Ke7
{[%clk 0:02:43.9]} 13. O-O {[%clk 0:02:39]} 13... g5 {[%clk 0:02:17.2]} 14. c4
{[%clk 0:02:34.7]} 14... Kf6 {[%clk 0:01:47.5]} 15. f4 {[%clk 0:02:29.7]} 15...
gxf4 {[%clk 0:01:42.7]} 16. Rxf4+ {[%clk 0:02:29.1]} 16... exf4 {[%clk
0:01:38.1]} 17. Bd4+ {[%clk 0:02:29]} 17... Kg5 {[%clk 0:01:25.7]} 18. Bxh8
{[%clk 0:02:26.9]} 18... d5 {[%clk 0:01:12.9]} 19. h4+ {[%clk 0:02:13.7]} 19...
Kxh4 {[%clk 0:01:08.5]} 20. Qd4 {[%clk 0:02:13.6]} 20... Bc5 {[%clk 0:00:53.8]}
21. Qxc5 {[%clk 0:02:12.9]} 21... Qxh8 {[%clk 0:00:53.8]} 22. Qe7+ {[%clk
0:02:13.2]} 22... Kg3 {[%clk 0:00:42.6]} 23. Qe1+ {[%clk 0:02:08.8]} 23... Kg4
{[%clk 0:00:40.2]} 24. Bd7+ {[%clk 0:02:08.4]} 24... f5 {[%clk 0:00:38.6]} 25.
Qe2+ {[%clk 0:02:06.5]} 25... Kg5 {[%clk 0:00:32.7]} 26. Rf1 {[%clk 0:01:59.4]}
26... Qd4+ {[%clk 0:00:31.1]} 27. Kh2 {[%clk 0:01:58.1]} 27... dxc4 {[%clk
0:00:25.1]} 28. Qe7+ {[%clk 0:01:46.5]} 28... Qf6 {[%clk 0:00:24.9]} 29. Qb4
{[%clk 0:01:14]} 29... Rd8 {[%clk 0:00:16.8]} 30. Qxb7 {[%clk 0:01:12.6]} 30...
Qf7 {[%clk 0:00:10.6]} 31. Bc6 {[%clk 0:01:05.1]} 31... Qh5+ {[%clk 0:00:10.3]}
32. Kg1 {[%clk 0:01:04.6]} 32... Rd1 {[%clk 0:00:10.3]} 33. Qe7+ {[%clk
0:01:03.1]} 33... Kg4 {[%clk 0:00:07.3]} 34. Bf3+ {[%clk 0:01:02.7]} 1-0

[Event "*** Titled Tuesday Blitz"]
[Site "Chess.com"]
[Date "2021.04.27"]
[Round "2"]
[White "smshk35"]
[Black "Nuvas"]
[Result "1-0"]
[WhiteElo "2359"]
[BlackElo "2628"]
[TimeControl "180+1"]
[EndTime "10:17:34 PDT"]
[Termination "smshk35 won on time"]

1. f4 {[%clk 0:03:00.9]} 1... d5 {[%clk 0:02:59.8]} 2. Nf3 {[%clk 0:02:59.3]}
2... Bg4 {[%clk 0:03:00]} 3. e3 {[%clk 0:02:58.3]} 3... h6 {[%clk 0:02:40.8]} 4.
h3 {[%clk 0:02:55.7]} 4... Bxf3 {[%clk 0:02:34.7]} 5. Qxf3 {[%clk 0:02:55.3]}
5... Nf6 {[%clk 0:02:35.5]} 6. b3 {[%clk 0:02:53.6]} 6... e6 {[%clk 0:02:34.4]}
7. Bb2 {[%clk 0:02:54.1]} 7... Be7 {[%clk 0:02:34.3]} 8. d3 {[%clk 0:02:54.2]}
8... c5 {[%clk 0:02:34]} 9. Nd2 {[%clk 0:02:53.6]} 9... Nc6 {[%clk 0:02:34.4]}
10. g4 {[%clk 0:02:53.9]} 10... Qa5 {[%clk 0:02:32.1]} 11. Bg2 {[%clk
0:02:53.6]} 11... O-O-O {[%clk 0:02:07.9]} 12. a3 {[%clk 0:02:52.1]} 12... Ne4
{[%clk 0:00:28.7]} 13. dxe4 {[%clk 0:02:27.9]} 13... Bh4+ {[%clk 0:00:28.4]} 14.
Kf1 {[%clk 0:01:41.6]} 14... Qxd2 {[%clk 0:00:27.5]} 15. Qe2 {[%clk 0:01:41.7]}
15... dxe4 {[%clk 0:00:16.8]} 16. Bxe4 {[%clk 0:01:38.1]} 16... Bf6 {[%clk
0:00:15.9]} 17. Bxf6 {[%clk 0:01:11.6]} 17... gxf6 {[%clk 0:00:16.8]} 18. Qxd2
{[%clk 0:00:33.9]} 18... Rxd2 {[%clk 0:00:16.3]} 19. Ke1 {[%clk 0:00:34.3]}
19... Rhd8 {[%clk 0:00:14.3]} 20. Bd3 {[%clk 0:00:32.2]} 20... Rg2 {[%clk
0:00:04.5]} 21. Rd1 {[%clk 0:00:29.7]} 1-0

[Event "*** Titled Tuesday Blitz"]
[Site "Chess.com"]
[Date "2021.04.27"]
[Round "2"]
[White "Kale36"]
[Black "ural58"]
[Result "0-1"]
[WhiteElo "2274"]
[BlackElo "2478"]
[TimeControl "180+1"]
[EndTime "10:17:34 PDT"]
[Termination "ural58 won by resignation"]

1. b3 {[%clk 0:03:00.9]} 1... e5 {[%clk 0:02:58.5]} 2. Bb2 {[%clk 0:03:00.7]}
2... Nc6 {[%clk 0:02:58.5]} 3. e3 {[%clk 0:03:01.1]} 3... d5 {[%clk 0:02:58.5]}
4. Bb5 {[%clk 0:03:01.1]} 4... Bd6 {[%clk 0:02:57.9]} 5. f4 {[%clk 0:03:01.4]}
5... Qh4+ {[%clk 0:02:50]} 6. g3 {[%clk 0:03:00.8]} 6... Qe7 {[%clk 0:02:50.9]}
7. Nf3 {[%clk 0:03:00.1]} 7... f6 {[%clk 0:02:33.8]} 8. Nc3 {[%clk 0:02:59.9]}
8... Be6 {[%clk 0:02:32.1]} 9. fxe5 {[%clk 0:02:45.8]} 9... fxe5 {[%clk
0:02:31]} 10. e4 {[%clk 0:02:45.3]} 10... d4 {[%clk 0:02:25.1]} 11. Nd5 {[%clk
0:02:43.5]} 11... Qd7 {[%clk 0:02:19.4]} 12. Ng5 {[%clk 0:02:37.7]} 12... Bg4
{[%clk 0:02:16.7]} 13. Be2 {[%clk 0:02:28.4]} 13... Nh6 {[%clk 0:02:10.6]} 14.
O-O {[%clk 0:02:20.9]} 14... Bxe2 {[%clk 0:01:50.8]} 15. Qxe2 {[%clk 0:02:20.1]}
15... O-O-O {[%clk 0:01:51.4]} 16. c3 {[%clk 0:02:07.6]} 16... dxc3 {[%clk
0:01:48.3]} 17. dxc3 {[%clk 0:02:07]} 17... Ne7 {[%clk 0:01:39.2]} 18. Rad1
{[%clk 0:01:56.5]} 18... Qc6 {[%clk 0:01:10.8]} 19. c4 {[%clk 0:01:27.2]} 19...
Bc5+ {[%clk 0:01:06.5]} 20. Kh1 {[%clk 0:01:25.7]} 20... Ng6 {[%clk 0:01:05.3]}
21. Nf7 {[%clk 0:01:20.2]} 21... Nxf7 {[%clk 0:01:04.4]} 22. Rxf7 {[%clk
0:01:20.7]} 22... Bb6 {[%clk 0:00:54.6]} 23. Rxg7 {[%clk 0:01:08.9]} 23... Kb8
{[%clk 0:00:54.1]} 24. Rf1 {[%clk 0:01:06.9]} 24... Rdf8 {[%clk 0:00:43.1]} 25.
Rgf7 {[%clk 0:01:01.4]} 25... Rxf7 {[%clk 0:00:43.2]} 26. Rxf7 {[%clk
0:01:02.3]} 26... a5 {[%clk 0:00:43.1]} 27. h4 {[%clk 0:00:50]} 27... Bd4 {[%clk
0:00:41.3]} 28. Rxc7 {[%clk 0:00:40.5]} 28... Qe6 {[%clk 0:00:37.8]} 29. Bc1
{[%clk 0:00:32.1]} 29... Qh3+ {[%clk 0:00:36.3]} 0-1

[Event "*** Titled Tuesday Blitz"]
[Site "Chess.com"]
[Date "2021.04.27"]
[Round "2"]
[White "McCarthyStone"]
[Black "Zallio"]
[Result "1/2-1/2"]
[WhiteElo "2360"]
[BlackElo "2070"]
[TimeControl "180+1"]
[EndTime "10:17:34 PDT"]
[Termination "Game drawn by repetition"]

1. e4 {[%clk 0:03:00.9]} 1... e6 {[%clk 0:02:39.9]} 2. d4 {[%clk 0:02:58.7]}
2... d5 {[%clk 0:02:39]} 3. e5 {[%clk 0:02:59.3]} 3... c5 {[%clk 0:02:38.4]} 4.
c3 {[%clk 0:03:00.2]} 4... Nc6 {[%clk 0:02:38.7]} 5. Nf3 {[%clk 0:03:00.3]} 5...
Qb6 {[%clk 0:02:39]} 6. Be2 {[%clk 0:02:59.9]} 6... cxd4 {[%clk 0:02:36.6]} 7.
cxd4 {[%clk 0:03:00.8]} 7... Nge7 {[%clk 0:02:37.1]} 8. Na3 {[%clk 0:02:54.6]}
8... Ng6 {[%clk 0:02:33.3]} 9. h4 {[%clk 0:02:51.8]} 9... Bb4+ {[%clk
0:02:25.5]} 10. Kf1 {[%clk 0:02:48.2]} 10... Nge7 {[%clk 0:02:19]} 11. Nc2
{[%clk 0:02:46.9]} 11... Nf5 {[%clk 0:02:15.9]} 12. g4 {[%clk 0:02:45.5]} 12...
Nh6 {[%clk 0:02:10.6]} 13. Bxh6 {[%clk 0:02:37.6]} 13... gxh6 {[%clk 0:02:09.9]}
14. Qc1 {[%clk 0:02:32.3]} 14... Bf8 {[%clk 0:02:07.3]} 15. Kg2 {[%clk
0:02:25.5]} 15... Bd7 {[%clk 0:02:05.8]} 16. a3 {[%clk 0:02:21.3]} 16... O-O-O
{[%clk 0:02:04.7]} 17. b4 {[%clk 0:02:21.7]} 17... Kb8 {[%clk 0:02:04.2]} 18.
Qf4 {[%clk 0:02:19.7]} 18... Rg8 {[%clk 0:01:55.2]} 19. Kh3 {[%clk 0:02:17.8]}
19... Be8 {[%clk 0:01:48.5]} 20. Bd3 {[%clk 0:02:16.8]} 20... Rh8 {[%clk
0:01:42.8]} 21. Qf6 {[%clk 0:02:11.8]} 21... Rg8 {[%clk 0:01:41.3]} 22. Bxh7
{[%clk 0:02:11.7]} 22... Bg7 {[%clk 0:01:39]} 23. Qf4 {[%clk 0:02:05.5]} 23...
Rf8 {[%clk 0:01:39.1]} 24. Rac1 {[%clk 0:01:58.9]} 24... f6 {[%clk 0:01:35.6]}
25. exf6+ {[%clk 0:01:58.5]} 25... e5 {[%clk 0:01:26.3]} 26. Nxe5 {[%clk
0:01:55.6]} 26... Ka8 {[%clk 0:01:17]} 27. fxg7 {[%clk 0:01:42.2]} 27... Rxf4
{[%clk 0:01:15.8]} 28. g8=Q {[%clk 0:01:42.7]} 28... Nxd4 {[%clk 0:01:06.6]} 29.
Nd3 {[%clk 0:01:23.3]} 29... Bd7 {[%clk 0:00:52.3]} 30. Qxd8+ {[%clk 0:01:14.5]}
30... Qxd8 {[%clk 0:00:49.6]} 31. Nxf4 {[%clk 0:01:15]} 31... Qf6 {[%clk
0:00:39.1]} 32. Nxd4 {[%clk 0:00:57.1]} 32... Qxf4 {[%clk 0:00:38.1]} 33. Bf5
{[%clk 0:00:47.4]} 33... Bc6 {[%clk 0:00:33.7]} 34. Nxc6 {[%clk 0:00:45.9]}
34... Qf3+ {[%clk 0:00:33.3]} 35. Kh2 {[%clk 0:00:43.8]} 35... Qxf2+ {[%clk
0:00:33.3]} 36. Kh3 {[%clk 0:00:44.2]} 36... Qf3+ {[%clk 0:00:34.1]} 37. Kh2
{[%clk 0:00:44.7]} 37... Qf2+ {[%clk 0:00:35]} 38. Kh3 {[%clk 0:00:45.2]} 38...
Qf3+ {[%clk 0:00:35.9]} 39. Kh2 {[%clk 0:00:46.1]} 39... Qf2+ {[%clk 0:00:36.8]}
1/2-1/2

[Event "*** Titled Tuesday Blitz"]
[Site "Chess.com"]
[Date "2021.04.27"]
[Round "2"]
[White "Vladyslav_Puchka"]
[Black "FrenchMonster2002"]
[Result "0-1"]
[WhiteElo "2110"]
[BlackElo "2392"]
[TimeControl "180+1"]
[EndTime "10:17:35 PDT"]
[Termination "FrenchMonster2002 won by checkmate"]

1. d4 {[%clk 0:03:00.9]} 1... g6 {[%clk 0:02:59.7]} 2. c4 {[%clk 0:02:47]} 2...
Bg7 {[%clk 0:03:00.1]} 3. Nc3 {[%clk 0:02:47.2]} 3... Nf6 {[%clk 0:03:00.5]} 4.
g3 {[%clk 0:02:46.5]} 4... Kf8 {[%clk 0:03:00.7]} 5. Bg2 {[%clk 0:02:47.2]} 5...
c6 {[%clk 0:02:57.8]} 6. Nf3 {[%clk 0:02:47.1]} 6... h6 {[%clk 0:02:58.2]} 7.
O-O {[%clk 0:02:47.3]} 7... Kg8 {[%clk 0:02:58.8]} 8. e4 {[%clk 0:02:47]} 8...
d6 {[%clk 0:02:58.1]} 9. h3 {[%clk 0:02:40.2]} 9... Kh7 {[%clk 0:02:58.5]} 10.
Bf4 {[%clk 0:02:38]} 10... Nbd7 {[%clk 0:02:56.1]} 11. e5 {[%clk 0:02:37.5]}
11... Nh5 {[%clk 0:02:55.6]} 12. Qd2 {[%clk 0:01:41.2]} 12... g5 {[%clk
0:02:35.2]} 13. Bxg5 {[%clk 0:01:33.5]} 13... hxg5 {[%clk 0:02:34]} 14. Qxg5
{[%clk 0:01:22.3]} 14... Kg8 {[%clk 0:02:22.4]} 15. exd6 {[%clk 0:01:14.9]}
15... Ndf6 {[%clk 0:02:09.5]} 16. dxe7 {[%clk 0:01:09.6]} 16... Qxe7 {[%clk
0:02:10.4]} 17. g4 {[%clk 0:01:02.4]} 17... Be6 {[%clk 0:01:55.8]} 18. b3 {[%clk
0:00:51]} 18... Kf8 {[%clk 0:01:46]} 19. gxh5 {[%clk 0:00:49.6]} 19... Rxh5
{[%clk 0:01:42.3]} 20. Qg3 {[%clk 0:00:47.3]} 20... Qd7 {[%clk 0:01:31.2]} 21.
h4 {[%clk 0:00:30.3]} 21... Rh6 {[%clk 0:01:18.7]} 22. Qf4 {[%clk 0:00:17.3]}
22... Nh5 {[%clk 0:01:12]} 23. Qe3 {[%clk 0:00:15.4]} 23... Rg6 {[%clk 0:01:03]}
24. Rad1 {[%clk 0:00:14.2]} 24... Bh3 {[%clk 0:01:00.8]} 25. Ne1 {[%clk
0:00:13.7]} 25... Bxg2 {[%clk 0:00:45.2]} 26. Nxg2 {[%clk 0:00:13]} 26... Qg4
{[%clk 0:00:45.9]} 27. Qe4 {[%clk 0:00:06.5]} 27... Nf4 {[%clk 0:00:46.5]} 28.
Kh2 {[%clk 0:00:04.1]} 28... Qh3+ {[%clk 0:00:46.2]} 29. Kg1 {[%clk 0:00:01.9]}
29... Rxg2+ {[%clk 0:00:47.1]} 30. Qxg2 {[%clk 0:00:01.6]} 30... Qxg2# {[%clk
0:00:48]} 0-1

[Event "*** Titled Tuesday Blitz"]
[Site "Chess.com"]
[Date "2021.04.27"]
[Round "2"]
[White "GM_LOADING"]
[Black "DeTimmerman"]
[Result "0-1"]
[WhiteElo "2545"]
[BlackElo "2789"]
[TimeControl "180+1"]
[EndTime "10:17:37 PDT"]
[Termination "DeTimmerman won by checkmate"]

1. e4 {[%clk 0:03:00.9]} 1... e5 {[%clk 0:02:58.1]} 2. Nf3 {[%clk 0:02:54.9]}
2... Nc6 {[%clk 0:02:57.6]} 3. Bc4 {[%clk 0:02:54.5]} 3... Nf6 {[%clk
0:02:53.6]} 4. d3 {[%clk 0:02:54.7]} 4... Be7 {[%clk 0:02:53.5]} 5. O-O {[%clk
0:02:54.7]} 5... O-O {[%clk 0:02:52.6]} 6. Re1 {[%clk 0:02:55.3]} 6... d6 {[%clk
0:02:52.4]} 7. a4 {[%clk 0:02:55.9]} 7... Kh8 {[%clk 0:02:52.4]} 8. h3 {[%clk
0:02:55.5]} 8... Ng8 {[%clk 0:02:51.6]} 9. Nc3 {[%clk 0:02:55.3]} 9... f5 {[%clk
0:02:51]} 10. Nd5 {[%clk 0:02:56]} 10... Bf6 {[%clk 0:02:50.9]} 11. c3 {[%clk
0:02:50.5]} 11... Nce7 {[%clk 0:02:50.4]} 12. Nxf6 {[%clk 0:02:48.9]} 12... Nxf6
{[%clk 0:02:51.3]} 13. exf5 {[%clk 0:02:38.4]} 13... Bxf5 {[%clk 0:02:48.7]} 14.
d4 {[%clk 0:02:35.3]} 14... e4 {[%clk 0:02:47.9]} 15. Nh2 {[%clk 0:02:32.7]}
15... d5 {[%clk 0:02:48.2]} 16. Be2 {[%clk 0:02:32.9]} 16... Qd6 {[%clk
0:02:43.1]} 17. Be3 {[%clk 0:02:27]} 17... Ng6 {[%clk 0:02:42.5]} 18. Qd2 {[%clk
0:02:25.8]} 18... a5 {[%clk 0:02:38.4]} 19. c4 {[%clk 0:02:25.4]} 19... c6
{[%clk 0:02:37.9]} 20. cxd5 {[%clk 0:02:24.8]} 20... Nxd5 {[%clk 0:02:37.5]} 21.
Rac1 {[%clk 0:02:24.4]} 21... Ngf4 {[%clk 0:02:35.8]} 22. Bf1 {[%clk 0:02:06.3]}
22... Bd7 {[%clk 0:02:13.5]} 23. Ng4 {[%clk 0:01:00.9]} 23... Bxg4 {[%clk
0:02:10.4]} 24. hxg4 {[%clk 0:01:01.8]} 24... Qg6 {[%clk 0:02:10.7]} 25. Qd1
{[%clk 0:00:47.6]} 25... Rae8 {[%clk 0:02:06.1]} 26. Rc5 {[%clk 0:00:44.4]}
26... Nxe3 {[%clk 0:01:49.9]} 27. fxe3 {[%clk 0:00:38.6]} 27... Nd5 {[%clk
0:01:50.6]} 28. Rxa5 {[%clk 0:00:33.7]} 28... Qh6 {[%clk 0:01:44.3]} 29. Qd2
{[%clk 0:00:30.9]} 29... Qh4 {[%clk 0:01:44.2]} 30. Bc4 {[%clk 0:00:27.7]} 30...
Nf6 {[%clk 0:01:37.8]} 31. Be2 {[%clk 0:00:22.8]} 31... Nxg4 {[%clk 0:01:29]}
32. Bxg4 {[%clk 0:00:23.7]} 32... Qxg4 {[%clk 0:01:29.9]} 33. Qe2 {[%clk
0:00:20.5]} 33... Rf3 {[%clk 0:01:30.3]} 34. Rf1 {[%clk 0:00:13]} 34... Ref8
{[%clk 0:01:26.8]} 35. Rxf3 {[%clk 0:00:12.8]} 35... exf3 {[%clk 0:01:27.7]} 36.
Qf2 {[%clk 0:00:12.8]} 36... h6 {[%clk 0:01:26.2]} 37. Re5 {[%clk 0:00:12.2]}
37... Rf6 {[%clk 0:01:23.8]} 38. Re8+ {[%clk 0:00:10.6]} 38... Kh7 {[%clk
0:01:24.1]} 39. g3 {[%clk 0:00:07.9]} 39... h5 {[%clk 0:01:20.3]} 40. Re5 {[%clk
0:00:06.5]} 40... h4 {[%clk 0:01:18.2]} 41. Qh2 {[%clk 0:00:06.6]} 41... f2+
{[%clk 0:01:16.2]} 42. Kf1 {[%clk 0:00:05.7]} 42... Qd1+ {[%clk 0:01:15.1]} 43.
Kg2 {[%clk 0:00:05.8]} 43... f1=Q# {[%clk 0:01:16]} 0-1

[Event "*** Titled Tuesday Blitz"]
[Site "Chess.com"]
[Date "2021.04.27"]
[Round "2"]
[White "olksuna"]
[Black "Yaryi_sergey"]
[Result "0-1"]
[WhiteElo "2646"]
[BlackElo "2439"]
[TimeControl "180+1"]
[EndTime "10:17:37 PDT"]
[Termination "Yaryi_sergey won by resignation"]

1. e4 {[%clk 0:03:00.9]} 1... c6 {[%clk 0:02:59.3]} 2. Nf3 {[%clk 0:03:00.4]}
2... g6 {[%clk 0:02:57.3]} 3. d4 {[%clk 0:02:56.6]} 3... Na6 {[%clk 0:02:55.5]}
4. c4 {[%clk 0:02:54.2]} 4... Nc7 {[%clk 0:02:54.2]} 5. Nc3 {[%clk 0:02:53.4]}
5... Bg7 {[%clk 0:02:54.1]} 6. h3 {[%clk 0:02:52.9]} 6... d6 {[%clk 0:02:53.7]}
7. Be2 {[%clk 0:02:49.1]} 7... Nf6 {[%clk 0:02:53.3]} 8. O-O {[%clk 0:02:48.2]}
8... O-O {[%clk 0:02:53.1]} 9. Be3 {[%clk 0:02:48.7]} 9... Nd7 {[%clk
0:02:47.4]} 10. Nd2 {[%clk 0:02:42.8]} 10... e5 {[%clk 0:02:46.2]} 11. d5 {[%clk
0:02:40.7]} 11... c5 {[%clk 0:02:44.5]} 12. g4 {[%clk 0:02:35.1]} 12... f5
{[%clk 0:02:27.3]} 13. gxf5 {[%clk 0:02:28.6]} 13... gxf5 {[%clk 0:02:27.1]} 14.
exf5 {[%clk 0:02:28.7]} 14... Rxf5 {[%clk 0:02:27.2]} 15. Kh2 {[%clk 0:02:21]}
15... Qh4 {[%clk 0:02:17.6]} 16. Nf3 {[%clk 0:01:58.3]} 16... Qe7 {[%clk
0:02:10.6]} 17. Rg1 {[%clk 0:01:49.8]} 17... Rh5 {[%clk 0:02:09.8]} 18. Ng5
{[%clk 0:01:44.2]} 18... Rh4 {[%clk 0:02:03.5]} 19. Rg3 {[%clk 0:01:31.1]} 19...
Nf6 {[%clk 0:02:02.5]} 20. Qg1 {[%clk 0:01:29.6]} 20... Nce8 {[%clk 0:02:01.8]}
21. Bd3 {[%clk 0:01:11.2]} 21... e4 {[%clk 0:01:46.5]} 22. Ncxe4 {[%clk
0:00:52.8]} 22... Nxe4 {[%clk 0:01:36.7]} 23. Bxe4 {[%clk 0:00:47.2]} 23... Rxe4
{[%clk 0:01:35.4]} 24. Nxe4 {[%clk 0:00:46.6]} 24... Qxe4 {[%clk 0:01:35.1]} 25.
Bh6 {[%clk 0:00:46.4]} 25... Qd4 {[%clk 0:01:02.6]} 26. Qg2 {[%clk 0:00:36]}
26... Bf5 {[%clk 0:00:58.8]} 27. Rg1 {[%clk 0:00:20.5]} 27... Bg6 {[%clk
0:00:54.3]} 28. Bxg7 {[%clk 0:00:12.2]} 28... Nxg7 {[%clk 0:00:52]} 29. b3
{[%clk 0:00:11.1]} 29... Rf8 {[%clk 0:00:51]} 30. Rf3 {[%clk 0:00:09.2]} 30...
Qe5+ {[%clk 0:00:49.8]} 31. Kh1 {[%clk 0:00:08.4]} 31... Rxf3 {[%clk 0:00:49.2]}
0-1

[Event "*** Titled Tuesday Blitz"]
[Site "Chess.com"]
[Date "2021.04.27"]
[Round "2"]
[White "Bad_left_hook"]
[Black "sergiochess83"]
[Result "0-1"]
[WhiteElo "2581"]
[BlackElo "2886"]
[TimeControl "180+1"]
[EndTime "10:17:38 PDT"]
[Termination "sergiochess83 won by resignation"]

1. d4 {[%clk 0:03:00.9]} 1... Nf6 {[%clk 0:02:59.3]} 2. c4 {[%clk 0:03:00.8]}
2... g6 {[%clk 0:02:55.9]} 3. Nc3 {[%clk 0:03:00.7]} 3... d5 {[%clk 0:02:56.1]}
4. cxd5 {[%clk 0:03:00.3]} 4... Nxd5 {[%clk 0:02:56.2]} 5. e4 {[%clk 0:02:59.8]}
5... Nxc3 {[%clk 0:02:56.4]} 6. bxc3 {[%clk 0:03:00.1]} 6... Bg7 {[%clk
0:02:57.3]} 7. Nf3 {[%clk 0:02:58.5]} 7... c5 {[%clk 0:02:55.8]} 8. Rb1 {[%clk
0:02:58.3]} 8... O-O {[%clk 0:02:53.6]} 9. Be2 {[%clk 0:02:57.1]} 9... b6 {[%clk
0:02:53.4]} 10. O-O {[%clk 0:02:56.8]} 10... Bb7 {[%clk 0:02:53.1]} 11. Qd3
{[%clk 0:02:56.3]} 11... e6 {[%clk 0:02:51.7]} 12. a4 {[%clk 0:02:51.5]} 12...
Nc6 {[%clk 0:02:44.3]} 13. d5 {[%clk 0:02:37.9]} 13... exd5 {[%clk 0:02:43]} 14.
exd5 {[%clk 0:02:37.6]} 14... c4 {[%clk 0:02:43.4]} 15. Qxc4 {[%clk 0:02:02]}
15... Na5 {[%clk 0:02:42.8]} 16. Qg4 {[%clk 0:01:57.7]} 16... Qxd5 {[%clk
0:02:38.3]} 17. Rd1 {[%clk 0:01:52.8]} 17... Qe4 {[%clk 0:02:29.1]} 18. Qxe4
{[%clk 0:01:51.9]} 18... Bxe4 {[%clk 0:02:30]} 19. Bd3 {[%clk 0:01:46.1]} 19...
Rad8 {[%clk 0:02:23]} 20. Ne1 {[%clk 0:01:19.4]} 20... Bxd3 {[%clk 0:01:47.2]}
21. Nxd3 {[%clk 0:01:12.9]} 21... Bxc3 {[%clk 0:01:47.1]} 22. Bg5 {[%clk
0:01:09.9]} 22... Rd5 {[%clk 0:01:35]} 23. Be7 {[%clk 0:00:51.4]} 23... Re8
{[%clk 0:01:31]} 24. Bb4 {[%clk 0:00:46.1]} 24... Rxd3 {[%clk 0:01:23.9]} 25.
Rxd3 {[%clk 0:00:45.2]} 25... Bxb4 {[%clk 0:01:24]} 26. Rd7 {[%clk 0:00:45.3]}
26... Re7 {[%clk 0:01:21.4]} 27. Rxe7 {[%clk 0:00:41.2]} 27... Bxe7 {[%clk
0:01:21.2]} 28. Rd1 {[%clk 0:00:42.1]} 28... Nb3 {[%clk 0:01:04.1]} 29. Rd7
{[%clk 0:00:40.5]} 29... Bb4 {[%clk 0:01:04.1]} 30. Rxa7 {[%clk 0:00:37.4]}
30... Nc5 {[%clk 0:01:01.1]} 31. g4 {[%clk 0:00:29.4]} 31... Ba5 {[%clk
0:01:00.4]} 32. Kg2 {[%clk 0:00:22]} 32... Nxa4 {[%clk 0:01:00.2]} 33. Rb7
{[%clk 0:00:21.5]} 33... Nc5 {[%clk 0:00:59.9]} 34. Rb8+ {[%clk 0:00:21.7]}
34... Kg7 {[%clk 0:01:00.4]} 35. g5 {[%clk 0:00:22.6]} 35... Ne6 {[%clk
0:00:59.2]} 36. h4 {[%clk 0:00:22.3]} 36... Nd4 {[%clk 0:00:52.8]} 37. Kg3
{[%clk 0:00:20.3]} 37... b5 {[%clk 0:00:52.7]} 38. Rd8 {[%clk 0:00:16.9]} 38...
Bxd8 {[%clk 0:00:52.2]} 0-1

[Event "*** Titled Tuesday Blitz"]
[Site "Chess.com"]
[Date "2021.04.27"]
[Round "2"]
[White "Ajedrez_con_German"]
[Black "Rodalquilar"]
[Result "0-1"]
[WhiteElo "2529"]
[BlackElo "2759"]
[TimeControl "180+1"]
[EndTime "10:17:44 PDT"]
[Termination "Rodalquilar won by resignation"]

1. d4 {[%clk 0:03:00.9]} 1... d5 {[%clk 0:02:59.8]} 2. Bf4 {[%clk 0:02:54.5]}
2... Nf6 {[%clk 0:02:59.6]} 3. e3 {[%clk 0:02:54]} 3... e6 {[%clk 0:03:00.1]} 4.
Nf3 {[%clk 0:02:53.1]} 4... Bd6 {[%clk 0:03:00.3]} 5. Bg3 {[%clk 0:02:53.3]}
5... O-O {[%clk 0:03:00.4]} 6. Bd3 {[%clk 0:02:41]} 6... c5 {[%clk 0:03:00.6]}
7. dxc5 {[%clk 0:02:33.7]} 7... Bxc5 {[%clk 0:03:00.6]} 8. O-O {[%clk
0:02:32.8]} 8... Nc6 {[%clk 0:03:00.6]} 9. c4 {[%clk 0:02:32.6]} 9... dxc4
{[%clk 0:02:48.5]} 10. Bxc4 {[%clk 0:02:32.4]} 10... Qe7 {[%clk 0:02:48.7]} 11.
Nc3 {[%clk 0:02:32]} 11... Rd8 {[%clk 0:02:40.3]} 12. Qe2 {[%clk 0:02:31.5]}
12... Bd7 {[%clk 0:02:40.4]} 13. Rfd1 {[%clk 0:02:27]} 13... Rac8 {[%clk
0:02:40.3]} 14. Bh4 {[%clk 0:02:21.2]} 14... Qf8 {[%clk 0:02:24.1]} 15. Bxf6
{[%clk 0:02:12.3]} 15... gxf6 {[%clk 0:02:23.9]} 16. Rd2 {[%clk 0:02:01.5]}
16... Be8 {[%clk 0:01:57]} 17. Rad1 {[%clk 0:01:57.8]} 17... Qe7 {[%clk
0:01:57.3]} 18. Rxd8 {[%clk 0:01:41.5]} 18... Rxd8 {[%clk 0:01:57.4]} 19. Rxd8
{[%clk 0:01:41.6]} 19... Qxd8 {[%clk 0:01:58.3]} 20. Qd2 {[%clk 0:01:41.7]}
20... Qc7 {[%clk 0:01:55.7]} 21. a3 {[%clk 0:01:36.3]} 21... a6 {[%clk
0:01:55.6]} 22. h3 {[%clk 0:01:35.3]} 22... Ne5 {[%clk 0:01:48.1]} 23. Be2
{[%clk 0:01:32.1]} 23... Bc6 {[%clk 0:01:42.1]} 24. Qd1 {[%clk 0:01:24.3]} 24...
Qb6 {[%clk 0:01:27.9]} 25. Nxe5 {[%clk 0:01:21.2]} 25... fxe5 {[%clk 0:01:26.3]}
26. b4 {[%clk 0:01:19.5]} 26... Bxe3 {[%clk 0:01:21.3]} 27. fxe3 {[%clk
0:01:06.4]} 27... Qxe3+ {[%clk 0:01:22.2]} 28. Kh2 {[%clk 0:00:51.7]} 28... Qxc3
{[%clk 0:01:21.6]} 29. Qd8+ {[%clk 0:00:51.3]} 29... Kg7 {[%clk 0:01:22.1]} 30.
Qg5+ {[%clk 0:00:49.5]} 30... Kf8 {[%clk 0:01:21.5]} 31. Qd8+ {[%clk 0:00:27.4]}
31... Be8 {[%clk 0:01:21.1]} 32. Bf3 {[%clk 0:00:27.5]} 32... Qd4 {[%clk
0:00:48]} 33. Qxd4 {[%clk 0:00:16.7]} 33... exd4 {[%clk 0:00:48.9]} 34. Bxb7
{[%clk 0:00:17]} 34... d3 {[%clk 0:00:42.4]} 35. Bf3 {[%clk 0:00:13.4]} 35...
Ba4 {[%clk 0:00:41.3]} 0-1